[Event "Uruguayan Championship 2022"]
[Site "Montevideo"]
[Date "2022.04.16"]
[Round "9.6"]
[White "Vaz Lacuesta, Leonardo"]
[Black "Vazquez, Facundo"]
[Result "0-1"]
[ECO "B23"]
[WhiteElo "2018"]
[BlackElo "2319"]
[Annotator "TA"]
[PlyCount "88"]
[EventDate "2022.04.08"]
[EventType "tourn"]
[EventCountry "URU"]
[SourceTitle "playchess.com"]
[Source "ChessBase"]
[SourceQuality "1"]
[TimeControl "40/5400+30:1800+30"]

{[%evp 9,88,6,46,33,41,28,35,31,29,9,23,16,31,21,17,0,20,-31,-32,-31,-8,-16,-2,-47,-38,-77,-54,-63,-30,-78,-70,-114,-100,-97,-99,-114,-60,-118,-33,-43,-35,-28,-6,-43,10,-14,78,-83,-19,-31,0,-549,-187,-188,-189,-189,-187,-177,-179,-179,-172,-310,-303,-278,-152,-135,-60,-201,-204,-243,-248,-466,-459,-458,-443,-550,-538,-523,-518,-641,-642]} 1. e4 {[%emt 0:00:03]} c5 {[%emt 0:00:08]} 2. Nc3 {[%emt 0:00:17]} e6 {[%emt 0:00:37]} 3. Nge2 {[%emt 0:00:33]} Nc6 {[%emt 0:00:29]} 4. g3 {[%emt 0:00:52]} Nf6 {[%emt 0:06:50]} 5. Bg2 {[%emt 0:01:39]} h5 {[%emt 0:01:26]} (5... d5 {with more complications.} 6. exd5 exd5 7. d4 cxd4 8. Nxd4 Bg4) 6. h3 {[%emt 0:13:37] B24: Closed Sicilian: 3 g3 sidelines.} (6. d4 {seems wilder.} h4 7. Bf4 Qb6 8. d5) 6... d6 {[%emt 0:02:51]} 7. d3 {[%emt 0:08:21]} Be7 {[%emt 0:00:51]} 8. Be3 {[%emt 0:02:17] White is slightly better.} Bd7 {[%emt 0:06:10] [#]} 9. Qd2 $146 {[%emt 0:06:30]} ({Predecessor:} 9. f4 Qc7 10. Qd2 a6 11. a3 Rb8 12. Bf3 b5 13. Kf2 a5 14. Nd1 b4 15. a4 {1-0 (21) Przybylak,L-Frackowiak,S (1991) Poznan 2008}) 9... a6 {[%emt 0:00:26]} 10. a3 {[%emt 0:09:08]} e5 {[%emt 0:04:46]} 11. f4 {[%emt 0:08:57]} Nd4 {[%emt 0:00:45]} 12. Rb1 {[%emt 0:08:01]} Qc7 {[%emt 0:05:45]} 13. Bxd4 {[%emt 0:18:14]} (13. O-O $11) 13... cxd4 $15 {[%emt 0:03:26]} 14. Nd1 {[%emt 0:00:40]} Qb6 {[%emt 0:06:54]} 15. O-O {[%emt 0:07:08]} Rc8 {[%emt 0:01:16]} 16. Nf2 {[%emt 0:00:21]} O-O {[%emt 0:02:43]} 17. Kh2 {[%emt 0:00:51]} Qc7 {[%emt 0:02:02]} 18. Rbc1 {[%emt 0:02:36]} Bc6 {[%emt 0:03:28]} (18... h4 $5) 19. Bf3 {[%emt 0:03:50]} (19. c3 $11 {feels stronger.}) 19... d5 $17 {[%emt 0:03:07]} 20. Rg1 {[%emt 0:03:08]} dxe4 {[%emt 0:01:37]} 21. dxe4 {[%emt 0:02:17]} Rfd8 {[%emt 0:08:19]} (21... Rcd8 {looks sharper.} 22. fxe5 Nd7 23. Bxh5 Nxe5 24. Nxd4 Nc4) 22. Rg2 {[%emt 0:01:06]} b6 {[%emt 0:01:07]} (22... Bd6 $17 23. Re1 Re8) 23. Ng1 {[%emt 0:00:46]} (23. fxe5 $15 Qxe5 24. Rd1) 23... Bb7 {[%emt 0:13:30]} (23... Bd6 $17 {[%cal Re5f4]} 24. Ne2 Re8) 24. fxe5 $15 {[%emt 0:00:24]} Qxe5 {[%emt 0:01:55]} 25. Nd3 {[%emt 0:00:04]} Qa5 {[%emt 0:01:17]} (25... Qc7 $5 {[%cal Rf6e4]} 26. e5 Nd5 $11) 26. Qe2 {[%emt 0:00:43]} Qg5 {[%emt 0:01:19]} (26... Rc7 $1 $15) 27. Re1 {[%emt 0:00:17]} (27. e5 $5 {[%cal Rf3b7]} Nd5 28. Bxh5 $11) 27... Re8 {[%emt 0:01:38]} (27... Qh6 $11 {keeps the balance.}) 28. h4 $2 {[%emt 0:01:11]} (28. e5 $16 {and life is bright.} Nd5 29. Be4) 28... Qh6 {[%emt 0:01:08]} ({Black should try} 28... Ng4+ $17 29. Bxg4 Qxg4 30. Qxg4 hxg4) 29. Nh3 $11 {[%emt 0:00:08]} Bd6 {[%emt 0:01:27] And now ...Bxe4 would win.} 30. Qf2 $2 {[%emt 0:00:41][%mdl 8192]} (30. Ng5 $11 {and White is okay.}) 30... Bxe4 $2 {[%emt 0:01:20] This bishop pair is nice.} (30... Ng4+ 31. Bxg4 hxg4) 31. Ng5 $19 {[%emt 0:00:20][%cal Re1e4]} Bxf3 {[%emt 0:00:55]} 32. Qxf3 {[%emt 0:00:16]} Rxe1 {[%emt 0:01:30]} 33. Nxe1 {[%emt 0:00:10]} Ng4+ {[%emt 0:01:19]} 34. Kg1 {[%emt 0:00:12]} Qf6 {[%emt 0:01:19] Active counter play!} 35. Ne4 {[%emt 0:01:07]} (35. Qd3 {was called for.} Qg6 36. Qxa6) 35... Qxf3 {[%emt 0:01:26]} 36. Nxf3 {[%emt 0:00:04] [#]} Be5 {[%emt 0:00:47]} (36... d3 $1 $19 {[%cal Rd3c2]} 37. c3 Bc5+ 38. Nxc5 bxc5) 37. Rd2 $17 {[%emt 0:00:23]} f5 {[%emt 0:01:51]} ({Black should play} 37... g6 $17 38. Nxe5 Nxe5) 38. Neg5 {[%emt 0:00:35] Now White is beyond hope.} ({Only move:} 38. Nxe5 $15 Nxe5 39. Ng5) 38... Bxg3 $19 {[%emt 0:00:20]} 39. Nxd4 {[%emt 0:01:32]} Bxh4 {[%emt 0:01:31]} 40. Nh3 {[%emt 0:00:27]} (40. Ngf3 Bf6 41. Nxf5) 40... Rd8 {[%emt 0:02:27] Black is clearly winning.} 41. c3 {[%emt 0:30:29]} Bf6 {[%emt 0:34:28]} 42. Nf3 {[%emt 0:00:00]} Rxd2 {[%emt 0:00:00]} 43. Nxd2 {[%emt 0:00:00]} Ne5 {[%emt 0:00:00] Inhibits Nf3.} 44. b3 {[%emt 0:00:00]} g5 {[%emt 0:00:00] Weighted Error Value: White=0.55/Black=0.36} 0-1

[Event "Uruguayan Championship 2022"]
[Site "Montevideo"]
[Date "2022.04.17"]
[Round "10.1"]
[White "Diaz Hollemaert, Nahuel"]
[Black "Vazquez, Facundo"]
[Result "0-1"]
[ECO "A28"]
[WhiteElo "2439"]
[BlackElo "2319"]
[Annotator "TA"]
[PlyCount "38"]
[EventDate "2022.04.08"]
[EventType "tourn"]
[EventCountry "URU"]
[SourceTitle "playchess.com"]
[Source "ChessBase"]
[SourceQuality "1"]
[TimeControl "40/5400+30:1800+30"]

{[%evp 11,38,0,0,0,9,6,8,0,0,-21,-14,-52,-22,-65,-63,-152,55,-25,0,0,5,-30,-22,-64,-54,-50,-56,-127,-165]} 1. c4 {[%emt 0:06:36]} e5 {[%emt 0:00:10]} 2. Nc3 {[%emt 0:01:40]} Nf6 {[%emt 0:00:10]} 3. Nf3 {[%emt 0:01:02]} Nc6 {[%emt 0:00:09]} 4. a3 {[%emt 0:00:09]} d5 {[%emt 0:00:07]} 5. cxd5 {[%emt 0:00:53]} Nxd5 {[%emt 0:00:03]} 6. Qc2 {[%emt 0:00:33]} Nxc3 {[%emt 0:00:10]} 7. dxc3 {[%emt 0:00:06] A28: English Opening: Four Knights Variation.} Qf6 {[%emt 0:00:09]} 8. e4 {[%emt 0:09:36]} Bc5 {[%emt 0:02:59] [#]} 9. b4 $146 {[%emt 0:17:03] The position is equal.} ({Predecessor:} 9. Be2 a5 10. O-O h6 11. Be3 Bxe3 12. fxe3 O-O 13. Bc4 Qe7 14. Qf2 Be6 15. Bd5 Bxd5 16. exd5 {1-0 (58) Zvjaginsev,V (2609)-Vokhidov,S (2521) Riga 2021}) 9... Bb6 {[%emt 0:00:12]} 10. Bg5 {[%emt 0:06:10]} Qg6 {[%emt 0:04:57]} 11. b5 {[%emt 0:16:48]} Nb8 {[%emt 0:03:59]} 12. Rd1 {[%emt 0:10:47][%csl Gg5][%cal Rd1d8] [#]} Nd7 {[%emt 0:07:13]} 13. Bc4 {[%emt 0:05:55]} (13. h4 $15 f6 14. h5) 13... O-O $2 {[%emt 0:07:19]} ({Black should try} 13... f6 $17 14. Be6 fxg5 15. Bxd7+ Bxd7 16. Rxd7 (16. Nxe5 $2 Bxf2+ 17. Qxf2 Qxe4+ 18. Qe2 Qxe2+ 19. Kxe2 Bxb5+ 20. Kf3 O-O+ 21. Kg3 h6 $19) 16... g4 17. Nxe5 Qe6) 14. O-O {[%emt 0:08:38]} (14. h4 $1 $14 h5 15. O-O) 14... Bc5 {[%emt 0:05:10]} 15. Bc1 {[%emt 0:02:46]} Qf6 {[%emt 0:12:26]} 16. Bb3 {[%emt 0:04:51]} Bd6 {[%emt 0:01:50]} 17. Bg5 {[%emt 0:00:53]} Qg6 {[%emt 0:03:04]} 18. Be3 {[%emt 0:03:06]} Nf6 {[%emt 0:01:47]} 19. Rfe1 {[%emt 0:01:57] [#]} (19. Bc4 $15) 19... Bg4 $1 {[%emt 0:02:19] Weighted Error Value: White=0.33/Black=0.29 (precise)} ({And not} 19... Nxe4 20. a4 $15) ({Inferior is} 19... Qxe4 20. a4 $15) 0-1

[Event "Uruguayan Championship 2022"]
[Site "Montevideo"]
[Date "2022.04.17"]
[Round "10.2"]
[White "Carvalho, Guillermo"]
[Black "Vaz Lacuesta, Leonardo"]
[Result "1/2-1/2"]
[ECO "A36"]
[WhiteElo "2171"]
[BlackElo "2018"]
[Annotator "TA"]
[PlyCount "35"]
[EventDate "2022.04.08"]
[EventType "tourn"]
[EventCountry "URU"]
[SourceTitle "playchess.com"]
[Source "ChessBase"]
[SourceQuality "1"]
[TimeControl "40/5400+30:1800+30"]

{[%evp 16,22,2,-3,18,5,8,0,-3]} 1. c4 {[%emt 0:00:03]} c5 {[%emt 0:00:06]} 2. Nc3 {[%emt 0:00:11]} g6 {[%emt 0:01:01]} 3. g3 {[%emt 0:00:10]} Bg7 {[%emt 0:00:23]} 4. Bg2 {[%emt 0:00:07]} Nc6 {[%emt 0:02:37]} 5. e4 {[%emt 0:00:21]} e6 {[%emt 0:00:40]} 6. Nge2 {[%emt 0:00:24]} Nge7 {[%emt 0:00:05]} 7. O-O {[%emt 0:00:41]} O-O {[%emt 0:00:05]} 8. d3 {[%emt 0:00:09]} d6 {[%emt 0:01:11]} 9. Bg5 {[%emt 0:01:39] The position is equal. 9.Rb1 is the modern continuation.} h6 {[%emt 0:08:35] A36: Symmetrical English vs ...g6: 4 Bg2 Bg7.} 10. Be3 {[%emt 0:00:56]} Nd4 {[%emt 0:01:15]} 11. Qd2 {[%emt 0:02:25]} Kh7 {[%emt 0:01:43] [#] Not much happened in this game.  Weighted Error Value: White=0.04 (flawless) /Black=0.08 (flawless)} {Predecessor:} 12. Rab1 $146 Nec6 13. f4 Bd7 14. Bf2 f5 15. exf5 gxf5 16. Nxd4 Nxd4 17. Ne2 Bc6 18. b4 {1-0 (35) Krapivin,A (2443)-Kazakovskiy,V (2354) Moscow 2015} 1/2-1/2

[Event "Uruguayan Championship 2022"]
[Site "Montevideo"]
[Date "2022.04.17"]
[Round "10.3"]
[White "Granara Barreto, Sebastian"]
[Black "Hoffman, Alejandro"]
[Result "1/2-1/2"]
[ECO "B07"]
[WhiteElo "2131"]
[BlackElo "2403"]
[Annotator "TA"]
[PlyCount "35"]
[EventDate "2022.04.08"]
[EventType "tourn"]
[EventCountry "URU"]
[SourceTitle "playchess.com"]
[Source "ChessBase"]
[SourceQuality "1"]
[TimeControl "40/5400+30:1800+30"]

{[%evp 11,35,34,39,31,36,39,40,30,51,35,32,26,29,24,39,29,58,62,79,61,85,62,95,94,95,79]} 1. e4 {[%emt 0:01:45]} d6 {[%emt 0:00:30]} 2. d4 {[%emt 0:00:08]} Nf6 {[%emt 0:00:08]} 3. Nc3 {[%emt 0:00:07]} e5 {[%emt 0:00:19]} 4. Nf3 {[%emt 0:00:08]} exd4 {[%emt 0:00:53]} 5. Nxd4 {[%emt 0:00:16]} Be7 {[%emt 0:00:09]} 6. g3 {[%emt 0:00:59]} O-O {[%emt 0:00:16]} 7. Bg2 {[%emt 0:00:08] C41: Philidor Defence.} c6 {[%emt 0:00:30]} 8. O-O {[%emt 0:00:50]} Re8 {[%emt 0:01:13]} 9. Re1 {[%emt 0:01:14] White is slightly better.} Bf8 {[%emt 0:00:41]} 10. a4 {[%emt 0:02:36]} a5 {[%emt 0:00:38]} 11. h3 {[%emt 0:03:32]} Na6 {[%emt 0:04:56]} 12. Bf4 {[%emt 0:04:48]} Nb4 {[%emt 0:31:39]} 13. Qd2 {[%emt 0:07:38]} Nd7 {[%emt 0:11:06]} 14. Rad1 {[%emt 0:17:34]} Ne5 {[%emt 0:01:13]} 15. b3 {[%emt 0:00:23]} Qc7 {[%emt 0:04:38]} 16. Be3 {[%emt 0:05:05]} g6 {[%emt 0:07:12] [#]} 17. f4 $146 {[%emt 0:05:40]} ({Predecessor:} 17. Bh6 Bxh6 18. Qxh6 Qe7 19. f4 Nd7 20. Nf5 gxf5 21. exf5 Qd8 22. Rxe8+ Qxe8 23. f6 {½-½ (52) Vega Gutierrez,S (2368)-Recuero Guerra,D (2457) El Sauzal 2010}) 17... Nd7 {[%emt 0:00:25]} 18. g4 {[%emt 0:05:56] Weighted Error Value: White=0.05 (flawless) /Black=0.10 (very precise)} 1/2-1/2

[Event "Uruguayan Championship 2022"]
[Site "Montevideo"]
[Date "2022.04.17"]
[Round "10.4"]
[White "Rodi, Luis Ernesto"]
[Black "Carbone, Diego"]
[Result "1/2-1/2"]
[ECO "C45"]
[WhiteElo "2347"]
[BlackElo "2272"]
[Annotator "TA"]
[PlyCount "142"]
[EventDate "2022.04.08"]
[EventType "tourn"]
[EventCountry "URU"]
[SourceTitle "playchess.com"]
[Source "ChessBase"]
[SourceQuality "1"]
[TimeControl "40/5400+30:1800+30"]

{[%evp 14,142,0,-18,-19,-20,45,-22,20,12,20,32,60,52,59,51,51,33,36,37,37,14,18,9,51,5,6,4,47,0,0,0,16,-31,-31,-53,-34,-121,-52,-131,-52,-37,0,-4,0,0,0,0,0,0,7,0,8,8,8,8,8,8,8,8,8,8,7,8,126,118,347,346,289,8,8,12,156,8,8,8,41,8,8,0,0,0,0,0,0,0,0,0,0,0,0,0,0,0,0,0,0,0,0,0,0,0,0,0,0,0,0,0,0,0,0,0,0,0,0,0,0,0,0,0,0,0,0,0,0,0,0,0,0,0,0]} 1. e4 {[%emt 0:00:04]} e5 {[%emt 0:00:13]} 2. Nf3 {[%emt 0:00:09]} Nc6 {[%emt 0:00:07]} 3. d4 {[%emt 0:00:04]} exd4 {[%emt 0:00:08]} 4. Nxd4 {[%emt 0:00:04]} Nf6 {[%emt 0:01:10]} 5. Nxc6 {[%emt 0:00:07]} bxc6 {[%emt 0:00:07]} 6. e5 {[%emt 0:00:03]} Qe7 {[%emt 0:00:19]} 7. Qe2 {[%emt 0:00:07]} Nd5 {[%emt 0:00:06]} 8. h4 {[%emt 0:00:05]} Qe6 {[%emt 0:02:04] C45: Scotch Game.} 9. Nd2 $1 {[%emt 0:00:17] [#] 9.Nd2 is better than 9.g3.} f6 $146 {[%emt 0:09:06]} ({Black should try} 9... a5 $11) ({Predecessor:} 9... d6 10. exd6 Bxd6 11. Nc4 Bc5 12. a3 O-O 13. Qxe6 Bxe6 14. Bd3 Rfe8 15. O-O Nf6 16. Be3 {½-½ (36) Yu,Y (2713)-Mamedyarov,S (2767) Belgrade 2022}) 10. Nf3 {[%emt 0:04:11]} (10. exf6 $14 gxf6 11. a3) 10... Bc5 {[%emt 0:06:34]} 11. c4 {[%emt 0:01:26]} Nb6 {[%emt 0:00:46]} 12. exf6 {[%emt 0:00:22]} Qxe2+ {[%emt 0:01:21]} 13. Bxe2 {[%emt 0:00:14]} gxf6 {[%emt 0:00:06]} 14. Bd2 {[%emt 0:03:48]} a5 {[%emt 0:02:16] Against b4} 15. O-O {[%emt 0:02:32]} O-O {[%emt 0:06:16]} 16. Rfe1 {[%emt 0:02:47]} d6 {[%emt 0:06:01]} 17. b3 {[%emt 0:04:22]} Bg4 {[%emt 0:04:49]} 18. a3 {[%emt 0:04:48]} Rfe8 {[%emt 0:06:05]} 19. Bc3 {[%emt 0:06:22]} (19. Bd3 $14) 19... Nd7 $11 {[%emt 0:01:48]} 20. Kf1 {[%emt 0:02:25]} Reb8 {[%emt 0:13:00]} 21. Nd2 {[%emt 0:02:02]} (21. Bd1 $1 $14) 21... Bxe2+ {[%emt 0:01:24]} 22. Rxe2 {[%emt 0:00:09]} Kf7 {[%emt 0:05:37] Prevents Re7+.} 23. f4 {[%emt 0:29:11]} (23. Rae1 $11 {deserves consideration.} d5 24. Bb2) 23... d5 $15 {[%emt 0:02:02]} 24. g4 {[%emt 0:01:04]} Bd6 {[%emt 0:02:17]} (24... d4 $5 {[%cal Rd4c3]} 25. Bb2 d3 $15) 25. Rf2 {[%emt 0:01:58]} (25. Rd1 $15) 25... Nc5 {[%emt 0:00:52]} (25... a4 $1 $17 {[%cal Ra4b3]} 26. b4 c5 27. cxd5 cxb4 28. axb4 Bxb4) 26. g5 {[%emt 0:15:20]} (26. Rb1 $1 $15) 26... f5 {[%emt 0:08:06]} (26... Nxb3 $17 27. Nxb3 Rxb3 28. Bxf6 dxc4) 27. Rb1 {[%emt 0:00:31]} dxc4 {[%emt 0:00:57]} (27... Rb7 {seems wilder.} 28. h5 Ne6 29. cxd5 cxd5 30. Nf3 Rab8) 28. Nxc4 {[%emt 0:05:33]} Rxb3 {[%emt 0:06:07]} (28... Ne4 {is more complex.} 29. Rf3 a4 30. b4 c5) 29. Rxb3 {[%emt 0:00:40]} Nxb3 {[%emt 0:00:03]} 30. Be5 {[%emt 0:00:14]} Rd8 {[%emt 0:02:32]} 31. h5 {[%emt 0:00:42]} a4 {[%emt 0:02:56]} 32. Rg2 {[%emt 0:04:20]} Bxe5 {[%emt 0:04:07]} 33. Nxe5+ $11 {[%emt 0:00:13][%mdl 4096] Endgame KRN-KRN} Kg8 {[%emt 0:03:15]} 34. Nxc6 {[%emt 0:02:59]} Rd1+ {[%emt 0:00:08]} 35. Kf2 {[%emt 0:00:21] Ne7+ is the strong threat.} Nd4 {[%emt 0:02:00]} 36. Nxd4 {[%emt 0:00:57]} Rxd4 {[%emt 0:00:01] KR-KR} 37. Ke3 {[%emt 0:00:09]} Re4+ {[%emt 0:00:20]} 38. Kf3 {[%emt 0:00:01]} Rc4 {[%emt 0:01:06]} (38... Re1 $1 $11 {remains equal.}) 39. Re2 $1 $16 {[%emt 0:00:09] Black must now prevent h6.} Rc3+ $2 {[%emt 0:01:31]} (39... h6 $16) 40. Re3 $18 {[%emt 0:00:07]} Rb3 {[%emt 0:00:48] [#]} 41. Ke2 $2 {[%emt 0:30:15]} ({White has to play} 41. h6 $1 $18) 41... Rb2+ $1 $11 {[%emt 0:30:39]} 42. Kd3 {[%emt 0:01:47] aiming for Re8+.} Rf2 {[%emt 0:00:00] [#]} (42... Rb3+ $11 43. Kd2 Rb2+ 44. Kc1 Rf2) 43. Kd4 {[%emt 0:00:00]} (43. Re8+ $1 $16 Kf7 44. Rc8) 43... Rxf4+ {[%emt 0:00:00]} 44. Ke5 {[%emt 0:00:00]} Rc4 {[%emt 0:00:00]} 45. Kxf5 {[%emt 0:00:00]} (45. Kf6 $5 {[%cal Re3e8]} Rc6+ 46. Kxf5 $16) 45... Kf7 $1 {[%emt 0:00:00] The position is equal.} 46. Rd3 {[%emt 0:00:00]} Rc5+ {[%emt 0:00:00]} 47. Kf4 {[%emt 0:00:00]} Rc4+ {[%emt 0:00:00]} 48. Ke5 {[%emt 0:00:00]} Rc5+ {[%emt 0:00:00]} 49. Rd5 {[%emt 0:00:00]} Rc3 {[%emt 0:00:00]} 50. Rd7+ {[%emt 0:00:00]} Kg8 {[%emt 0:00:00]} 51. h6 {[%emt 0:00:00]} Rxa3 {[%emt 0:00:00]} 52. Rg7+ {[%emt 0:00:00]} Kh8 {[%emt 0:00:00]} 53. Rxc7 {[%emt 0:00:00][%cal Rc7c8]} Kg8 {[%emt 0:00:00]} 54. Rg7+ {[%emt 0:00:00]} Kh8 {[%emt 0:00:00]} 55. Ra7 {[%emt 0:00:00][%cal Ra7a8]} Kg8 {[%emt 0:00:00]} 56. Kf5 {[%emt 0:00:00] Hoping for Ra8+.} Ra1 {[%emt 0:00:00]} 57. Ke4 {[%emt 0:00:00]} Re1+ {[%emt 0:00:00]} 58. Kd3 {[%emt 0:00:00]} Rd1+ {[%emt 0:00:23]} 59. Kc4 {[%emt 0:00:00]} Rc1+ {[%emt 0:00:49]} 60. Kb4 {[%emt 0:00:00]} Rb1+ {[%emt 0:00:36]} 61. Ka3 {[%emt 0:00:00]} Ra1+ {[%emt 0:01:26]} 62. Kb2 {[%emt 0:00:00]} Rg1 {[%emt 0:00:16]} 63. Ra5 {[%emt 0:00:00]} Kf7 {[%emt 0:00:51]} 64. Ra7+ {[%emt 0:00:00]} Kg6 {[%emt 0:00:53]} 65. Rg7+ {[%emt 0:00:00]} Kh5 {[%emt 0:00:24]} 66. Rxh7 {[%emt 0:00:00] Threatens to win with Rg7.} Rxg5 {[%emt 0:00:27]} 67. Rh8 {[%emt 0:00:00]} Rg6 {[%emt 0:00:14]} 68. h7 {[%emt 0:00:00]} Rg7 {[%emt 0:00:32]} 69. Ka3 {[%emt 0:00:00]} Kh6 {[%emt 0:00:09]} 70. Kxa4 {[%emt 0:00:00]} Rxh7 {[%emt 0:00:05]} 71. Rg8 {[%emt 0:00:00]} Rg7 {[%emt 0:00:16] Weighted Error Value: White=0.29 (precise) /Black=0.22 (precise)} 1/2-1/2

[Event "Uruguayan Championship 2022"]
[Site "Montevideo"]
[Date "2022.04.17"]
[Round "10.5"]
[White "Palacio, Enzo"]
[Black "Coppola, Claudio"]
[Result "0-1"]
[ECO "B75"]
[WhiteElo "1896"]
[BlackElo "2285"]
[Annotator "TA"]
[PlyCount "54"]
[EventDate "2022.04.08"]
[EventType "tourn"]
[EventCountry "URU"]
[SourceTitle "playchess.com"]
[Source "ChessBase"]
[SourceQuality "1"]
[TimeControl "40/5400+30:1800+30"]

{[%evp 14,54,56,52,56,32,31,0,0,0,7,-23,-18,-13,-16,-10,0,-49,-18,-18,-22,-28,-32,-24,-25,-359,-356,-356,-358,-463,-479,-616,-616,-835,-825,-784,-822,-788,-759,-708,-689,-658,-616]} 1. e4 {[%emt 0:00:03]} c5 {[%emt 0:12:48]} 2. Nf3 {[%emt 0:00:11]} d6 {[%emt 0:00:22]} 3. d4 {[%emt 0:00:06]} cxd4 {[%emt 0:00:02]} 4. Nxd4 {[%emt 0:00:06]} Nf6 {[%emt 0:00:06]} 5. Nc3 {[%emt 0:00:04]} g6 {[%emt 0:00:03]} 6. Be3 {[%emt 0:00:06]} Bg7 {[%emt 0:00:04]} 7. f3 {[%emt 0:00:04]} a6 {[%emt 0:00:07]} 8. Qd2 {[%emt 0:08:38]} h5 {[%emt 0:00:08] B75: Sicilian Dragon: Yugoslav Attack, Miscellaneous.} 9. a4 {[%emt 0:10:37]} b6 {[%emt 0:01:25]} 10. h4 {[%emt 0:08:16]} Bb7 {[%emt 0:00:28] The position is equal.} 11. Bc4 {[%emt 0:05:06]} Nbd7 {[%emt 0:00:30] [#]} 12. Nd5 $146 {[%emt 0:12:01]} ({Predecessor:} 12. Nde2 O-O 13. Bh6 Rc8 14. Bxg7 Kxg7 15. Bb3 Ne5 16. Nd4 Rc5 17. O-O-O Rh8 18. Qe3 {0-1 (36) Jabed,A (2002)-Adhiban,B (2659) Dhaka 2021}) 12... Ne5 {[%emt 0:13:28]} 13. Nxf6+ {[%emt 0:12:33]} Bxf6 {[%emt 0:00:07]} 14. Be2 {[%emt 0:01:55]} Rc8 {[%emt 0:18:28]} 15. O-O-O {[%emt 0:06:39]} (15. Bg5 $11 {feels stronger.}) 15... Nc4 {[%emt 0:01:34]} 16. Bxc4 {[%emt 0:00:06]} Rxc4 {[%emt 0:00:02]} 17. b3 {[%emt 0:02:14]} Rc8 {[%emt 0:00:19]} 18. Kb1 {[%emt 0:11:50]} Qc7 {[%emt 0:04:53]} 19. g4 $2 {[%emt 0:04:04][%mdl 8192] [#]} (19. c4 $11 {and White stays safe.}) 19... hxg4 $19 {[%emt 0:01:13]} 20. fxg4 {[%emt 0:01:15]} Bxe4 {[%emt 0:00:46] And now ...e5 would win. This bishop pair is nice.} 21. Rh2 {[%emt 0:00:43]} e5 {[%emt 0:05:56] Black is clearly winning.} ({Don't go for} 21... Be5 $2 22. Bf4 $19) 22. Re1 {[%emt 0:09:04][%cal Oe3g5]} d5 {[%emt 0:01:27]} ({And not} 22... exd4 23. Bf4 $17 (23. Bxd4 $2 Bxd4 24. Qxd4 d5 $19)) 23. Ne2 {[%emt 0:01:43]} Qxc2+ {[%emt 0:01:21]} 24. Qxc2 {[%emt 0:00:30]} Rxc2 {[%emt 0:00:06]} 25. Ka1 {[%emt 0:00:39]} Bd3 {[%emt 0:00:18] [#] Threatens to win with ...e4+.} 26. g5 {[%emt 0:01:20]} Bg7 {[%emt 0:00:18] Hoping for ...e4+.} 27. Rf2 {[%emt 0:01:04]} Rxh4 {[%emt 0:00:35] Black took control after the opening.  Weighted Error Value: White=0.69/Black=0.02 (flawless)} 0-1